bitfinex-derivatives/quotes_ETHF0:USTF0_20250501
["timestamp","ask_amount","ask_price","bid_price","bid_amount"]
[1746123774355,1.08163,1848.4,1848.3,1.5918]
[1746123774543,2.72753,1848.4,1848.3,1.5918]
[1746123776847,1.08169,1848.3,1848.2,6.0082]
[1746123777049,2.79279,1848.3,1848.2,6.0082]
[1746123777251,2.79279,1848.3,1848.2,7.7107]
[1746123778546,1.08166,1848.4,1848.3,1.08162]
[1746123778747,1.08166,1848.4,1848.3,2.65482]
[1746123779450,1.08166,1848.4,1848.3,1.5732]
[1746123780146,1.08163,1848.4,1848.3,1.5732]
[1746123780454,3.2078,1848.7,1848.6,1.08152]
[1746123780652,1.08146,1848.8,1848.7,1.08142]
[1746123780855,1.08146,1848.8,1848.7,1.93352]
[1746123781149,1.08146,1848.8,1848.7,0.8521]
[1746123781752,1.08135,1849.0,1848.9,1.08132]
[1746123784254,5.37425409,1849.4,1849.1,2.70297]
[1746123784445,5.37425409,1849.4,1849.3,1.08111]
[1746123784754,5.37425409,1849.4,1849.3,4.63511]
[1746123786651,6.45530409,1849.4,1849.3,4.63511]
[1746123786850,8.18390409,1849.4,1849.3,3.554]
[1746123787053,8.18390409,1849.4,1849.3,4.63511]
[1746123787257,5.37425409,1849.4,1849.3,4.63511]
[1746123787455,1.6043,1849.5,1849.4,1.08105]
[1746123787955,1.6043,1849.5,1849.3,3.554]
[1746123788153,1.08108,1849.4,1849.3,1.08108]
[1746123788358,1.08122,1849.1,1849.0,7.16283066]
[1746123788656,1.08122,1849.1,1849.0,8.24411066]
[1746123789660,1.08122,1849.1,1849.0,7.16283066]
[1746123790360,1.08128,1849.0,1848.9,1.89123]
[1746123790561,1.08126,1849.1,1849.0,1.08128]
[1746123790756,1.08128,1849.0,1848.9,1.8912]
[1746123791657,1.5861,1849.2,1848.9,1.8912]
[1746123791958,2.66733,1849.2,1849.1,1.08122]
[1746123792151,1.5861,1849.2,1848.9,0.8099]
[1746123792453,2.66731,1849.2,1849.1,1.08122]
[1746123793957,4.40659,1849.5,1849.1,4.0407]
[1746123794163,1.08117,1849.2,1849.1,0.8329]
[1746123794658,2.79354,1849.3,1849.1,0.8329]
[1746123794862,4.4066,1849.5,1849.2,1.5875]
[1746123795159,1.08111,1849.3,1849.2,1.5875]
[1746123795365,1.08117,1849.2,1849.1,0.8329]
[1746123795559,2.79357,1849.2,1849.1,1.91408]
[1746123796362,1.7124,1849.2,1849.1,1.91408]
[1746123797157,4.28887,1849.4,1849.1,0.8329]
[1746123797362,1.6335,1849.4,1849.3,1.08111]
[1746123797759,1.08114,1849.3,1849.2,1.08111]
[1746123797963,9.42,1849.7,1849.2,2.7028]
[1746123798261,1.6486,1849.9,1849.6,2.70223]
[1746123798463,5.37425409,1850.0,1849.9,1.08076]
[1746123798963,5.37425409,1850.0,1849.9,11.28006]
[1746123799358,5.37425409,1850.0,1849.9,6.28006]
[1746123800761,5.37425409,1850.0,1849.9,1.08076]
[1746123800953,11.79995409,1850.0,1849.5,3.2078]
[1746123801158,8.59215409,1850.0,1849.6,1.08092]
[1746123801360,1.08085,1849.8,1849.6,1.08092]
[1746123801658,1.08085,1849.8,1849.7,1.08087]
[1746123802061,1.0808,1849.9,1849.7,1.08087]
[1746123802261,1.607,1849.8,1849.7,1.08087]
[1746123803462,4.28851,1850.0,1849.9,1.08076]
[1746123803668,4.8002,1850.0,1849.9,1.08076]
[1746123803968,5.8809,1850.0,1849.9,1.08076]
[1746123804466,4.8002,1850.0,1849.8,2.68889]
[1746123804669,1.5924,1849.9,1849.8,1.08079]
[1746123804860,1.5924,1849.9,1849.7,0.829]
[1746123805057,1.08093,1849.6,1849.5,8.24380066]
[1746123805263,4.0098,1849.8,1849.5,8.24380066]
[1746123805462,1.08093,1849.6,1849.5,7.16283066]
[1746123806759,1.08093,1849.6,1849.5,8.24382066]
[1746123807368,1.08093,1849.6,1849.5,1.08099]
[1746123807569,1.5924,1849.7,1849.4,1.081]
[1746123807860,0.8668,1849.5,1849.4,1.081]
[1746123808266,2.5152,1849.5,1849.4,1.081]
[1746123808466,1.6484,1849.5,1849.4,1.081]
[1746123809468,3.57219,1849.5,1849.4,1.081]
[1746123810670,1.6484,1849.5,1849.4,1.081]
[1746123814572,2.72939,1849.5,1849.4,1.081]
[1746123814973,1.08111,1849.3,1849.2,1.91014]
[1746123815470,2.79859,1849.4,1849.3,1.08111]
[1746123815972,1.7175,1849.4,1849.3,1.08111]
[1746123816274,1.7175,1849.4,1849.3,2.78081]
[1746123816470,1.08097,1849.6,1849.5,1.08099]
[1746123817175,2.79847,1849.6,1849.5,1.08099]
[1746123817374,1.7175,1849.6,1849.5,1.08099]
[1746123817579,1.7175,1849.6,1849.5,1.91289]
[1746123817876,1.7175,1849.6,1849.5,1.08099]
[1746123818574,1.7175,1849.6,1849.5,1.91289]
[1746123818875,4.66186,1849.8,1849.7,1.08087]
[1746123819075,1.93036,1849.8,1849.7,1.08087]
[1746123819380,1.08087,1849.7,1849.6,1.94829]
[1746123819673,3.2078,1849.7,1849.2,2.7029]
[1746123819873,1.08101,1849.5,1849.4,1.08099]
[1746123821270,1.08108,1849.4,1849.3,1.08106]
[1746123821574,2.75878,1849.4,1849.3,1.08106]
[1746123822771,1.08111,1849.3,1849.2,1.08113]
[1746123822975,2.75881,1849.3,1849.2,1.08113]
[1746123823671,1.08121,1849.2,1849.1,1.08118]
[1746123823873,2.69151,1849.2,1849.1,1.08118]
[1746123824074,1.6103,1849.2,1849.1,1.08118]
[1746123824279,1.6103,1849.2,1849.1,2.67968]
[1746123824677,2.69147,1849.2,1849.1,2.67968]
[1746123825166,2.69147,1849.2,1849.1,1.08118]
[1746123825575,3.55617,1849.2,1849.1,1.08118]
[1746123826477,2.475,1849.2,1849.1,1.08118]
[1746123826679,2.69147,1849.2,1849.1,1.08118]
[1746123827478,1.6103,1849.2,1849.1,1.08118]
[1746123827781,1.08122,1849.1,1849.0,1.08124]
[1746123827981,1.86862,1849.1,1849.0,1.08124]
[1746123830780,2.69149,1849.2,1849.1,1.08122]
[1746123831082,2.69147,1849.2,1849.1,1.08122]
[1746123831685,1.6103,1849.2,1849.1,1.08122]
[1746123831884,2.69147,1849.2,1849.1,1.08122]
[1746123832074,1.6103,1849.2,1849.1,1.08122]
[1746123832279,1.6103,1849.2,1849.0,1.6964]
[1746123832583,1.08128,1849.0,1848.9,2.7423]
[1746123832783,1.08128,1849.0,1848.9,0.8639]
[1746123832988,1.08134,1848.9,1848.8,2.77775]
[1746123833185,1.0814,1848.8,1848.7,1.93041]
[1746123834187,1.0814,1848.8,1848.7,3.56771]
[1746123835885,2.68075,1848.9,1848.8,1.0814]
[1746123836290,2.68075,1848.9,1848.8,2.7978]
[1746123841288,1.08131,1849.0,1848.9,1.08134]
[1746123841493,5.88714,1849.1,1849.0,1.08128]
[1746123841984,5.88714,1849.1,1849.0,2.67758]
[1746123843787,1.5981,1849.1,1849.0,2.67758]
[1746123844092,3.628,1849.4,1849.3,1.08111]
[1746123844290,1.08105,1849.4,1849.3,1.08111]
[1746123845189,5.92663,1849.5,1849.4,1.08105]
[1746123845492,5.92659,1849.5,1849.4,1.08105]
[1746123845891,5.92659,1849.5,1849.4,0.98105]
[1746123846285,4.8456,1849.5,1849.4,0.98105]
[1746123846491,5.92659,1849.5,1849.4,0.98105]
[1746123846791,2.71879,1849.5,1849.4,0.98105]
[1746123847390,5.92659,1849.5,1849.4,0.98105]
[1746123848995,4.8456,1849.5,1849.4,0.98105]
[1746123849292,3.2078,1849.5,1849.4,0.98105]
[1746123849685,3.2078,1849.5,1849.4,5.98105]
[1746123850093,1.08088,1849.7,1849.6,1.08093]
[1746123850790,3.2078,1849.8,1849.7,1.08087]
[1746123851291,5.37425409,1850.0,1849.9,1.08076]
[1746123851687,5.37425409,1850.0,1849.9,6.08076]
[1746123851986,7.11743707,1850.1,1850.0,1.0807]
[1746123852185,7.11743707,1850.1,1850.0,5.9052]
[1746123852394,7.11743707,1850.1,1850.0,14.4942]
[1746123854094,1.08048,1850.4,1850.3,1.08052]
[1746123854592,5.97195,1850.5,1850.4,1.08046]
[1746123854787,1.08048,1850.4,1850.3,1.08048]
[1746123854988,5.97196,1850.5,1850.4,1.08046]
[1746123855294,4.8915,1850.5,1850.3,0.8333]
[1746123855490,5.97195,1850.5,1850.4,1.08046]
[1746123856780,1.08046,1850.4,1850.3,3.60747]
[1746123856994,2.66866,1850.4,1850.3,3.60747]
[1746123860097,1.5882,1850.4,1850.3,3.60747]
[1746123860592,2.66866,1850.4,1850.3,3.60747]
[1746123863100,2.66866,1850.4,1850.3,1.91377]
[1746123865894,2.66866,1850.4,1850.3,1.08047]
[1746123866089,3.48446,1850.4,1850.3,1.08047]
[1746123867805,4.28825,1850.5,1850.4,1.08046]
[1746123868003,5.89555,1850.5,1850.4,1.08046]
[1746123870408,1.08046,1850.4,1850.3,2.79916]
[1746123870608,2.80376,1850.4,1850.3,2.79916]
[1746123872704,1.7233,1850.4,1850.3,2.79916]
[1746123873210,2.80376,1850.4,1850.3,2.79916]
[1746123875203,2.80376,1850.4,1850.3,1.08046]
[1746123878109,4.28822,1850.5,1850.4,1.08046]
[1746123878707,5.89852,1850.5,1850.4,1.08046]
[1746123880617,1.08052,1850.4,1850.3,1.08049]
[1746123880813,2.70131,1850.3,1849.6,5.932]
[1746123881010,5.90957,1850.0,1849.7,1.08086]
[1746123881209,2.4749,1849.9,1849.8,1.0808]
[1746123881508,3.55566,1849.9,1849.8,1.0808]
[1746123881710,2.69106,1849.9,1849.8,1.9254]
[1746123881911,1.6103,1849.9,1849.8,1.9254]
[1746123882314,4.28854,1850.0,1849.9,1.08076]
[1746123882516,6.00784,1850.0,1849.9,3.53716]
[1746123883221,2.80004,1850.0,1849.9,3.53716]
[1746123883519,6.00784,1850.0,1849.9,3.53716]
[1746123884118,6.00784,1850.0,1849.9,2.4564]
[1746123885221,1.08076,1849.9,1849.8,0.8446]
[1746123885421,2.75866,1849.9,1849.8,0.8446]
[1746123886624,2.75866,1849.9,1849.8,1.92541]
[1746123886823,2.75866,1849.9,1849.8,0.8446]
[1746123887121,2.75866,1849.9,1849.8,1.92541]
[1746123887831,5.96646,1849.9,1849.8,1.92541]
[1746123888033,5.96646,1849.9,1849.8,0.8446]
[1746123889535,5.96646,1849.9,1849.8,1.92541]
[1746123890834,5.96646,1849.9,1849.8,1.08081]
[1746123892032,4.28856,1849.9,1849.8,1.08081]
[1746123894131,1.08081,1849.8,1849.7,2.67641]
[1746123894634,6.02149,1849.9,1849.8,1.08081]
[1746123894834,6.02149,1849.9,1849.8,2.74141]
[1746123901940,6.02146,1849.9,1849.8,2.74141]
[1746123905641,1.08087,1849.8,1849.7,1.08082]
[1746123905944,1.08087,1849.7,1849.6,0.866]
[1746123906142,1.91137,1849.7,1849.6,0.866]
[1746123906339,1.08093,1849.6,1849.5,2.81744]
[1746123906538,2.67173,1849.6,1849.5,2.81744]
[1746123908544,1.5908,1849.6,1849.5,2.81744]
[1746123909948,2.67173,1849.6,1849.5,2.81744]
[1746123911644,1.5908,1849.6,1849.4,1.08102]
[1746123911843,3.54153,1849.5,1849.4,1.08102]
[1746123912439,1.08111,1849.3,1849.2,4.28895]
[1746123912649,1.0812,1849.2,1849.1,1.08117]
[1746123912849,2.7799,1849.2,1849.1,1.08117]
[1746123913145,1.6987,1849.2,1849.1,1.08117]
[1746123913344,1.6987,1849.2,1849.1,3.61477]
[1746123913947,4.28888,1849.4,1849.3,1.08111]
[1746123914146,5.98758,1849.4,1849.3,1.08111]
[1746123914348,5.98758,1849.4,1849.3,1.89341]
[1746123916450,4.9065,1849.4,1849.3,1.89341]
[1746123916752,1.08105,1849.5,1849.4,1.08105]
[1746123916943,5.838,1849.6,1849.5,1.08099]
[1746123917249,1.0809,1849.7,1849.6,1.08093]
[1746123917450,2.7643,1849.7,1849.6,3.55413]
[1746123917749,1.08093,1849.6,1849.5,1.87885]
[1746123917952,2.76433,1849.6,1849.5,1.87885]
[1746123918651,1.6834,1849.6,1849.5,1.87885]
[1746123918852,1.6834,1849.6,1849.5,3.55595]
[1746123919551,2.76433,1849.6,1849.5,3.55595]
[1746123920754,1.6834,1849.6,1849.5,3.55595]
[1746123920944,2.76433,1849.6,1849.5,3.55595]
[1746123921550,1.6834,1849.6,1849.5,3.55595]
[1746123921750,2.76433,1849.6,1849.5,3.55595]
[1746123922746,1.08085,1849.8,1849.7,1.08087]
[1746123924951,1.08085,1849.8,1849.7,1.94127]
[1746123927551,2.72195,1849.8,1849.7,1.94127]
[1746123928250,1.08093,1849.6,1849.5,1.87884]
[1746123928450,1.08099,1849.5,1849.4,0.809]
[1746123928649,1.08105,1849.4,1849.3,0.8649]
[1746123928855,1.08111,1849.3,1849.2,7.16283066]
[1746123929053,3.54131,1849.3,1849.2,7.16283066]
[1746123929261,6.74911,1849.3,1849.2,7.16283066]
[1746123930059,7.18243485,1849.3,1849.2,7.16283066]
[1746123933561,11.10132485,1849.3,1848.7,1.08144]
[1746123933764,1.08146,1848.7,1848.5,21.13382855]
[1746123934463,1.08146,1848.7,1848.5,21.13383855]
[1746123934659,2.65756,1848.7,1848.5,21.13383855]
[1746123934963,2.65756,1848.7,1848.5,21.13381855]
[1746123934964,5.86536,1848.7,1848.5,21.13381855]
[1746123935358,4.7839,1848.7,1848.6,1.86842]
[1746123935569,3.2078,1848.7,1848.6,3.52732]
[1746123935861,4.28926,1848.7,1848.6,3.52732]
[1746123937569,3.2078,1848.7,1848.6,3.52732]
[1746123937961,4.28926,1848.7,1848.6,3.52732]
[1746123938161,3.2078,1848.7,1848.6,3.52732]
[1746123938362,4.28926,1848.7,1848.6,3.52732]
[1746123938563,3.2078,1848.7,1848.6,3.52732]
[1746123942469,4.28926,1848.7,1848.6,3.52732]
[1746123942870,3.2078,1848.7,1848.6,3.52732]
[1746123943869,4.28926,1848.7,1848.6,3.52732]
[1746123944168,5.91926,1848.7,1848.6,3.52732]
[1746123945969,5.91926,1848.7,1848.6,2.4458]
[1746123946173,1.08152,1848.6,1848.5,0.8016]
[1746123946368,1.08152,1848.6,1848.5,2.5199]
[1746123946668,1.08152,1848.6,1848.5,3.60147]
[1746123946870,2.65302,1848.6,1848.5,3.60147]
[1746123947271,2.65302,1848.6,1848.5,1.08157]
[1746123947470,1.08163,1848.5,1848.4,1.87299]
[1746123947767,2.65313,1848.5,1848.4,1.87299]
[1746123947964,2.65313,1848.5,1848.4,3.59129]
[1746123948161,2.65313,1848.5,1848.3,4.28943]
[1746123948162,1.08163,1848.4,1848.3,4.28943]
[1746123948366,2.65313,1848.4,1848.3,1.08163]
[1746123951577,1.08173,1848.3,1848.2,1.08169]
[1746123951776,2.74423,1848.3,1848.2,1.08169]
[1746123953072,1.6625,1848.3,1848.2,1.08169]
[1746123953274,1.90109,1848.5,1848.1,6.3889]
[1746123953576,2.74879,1848.5,1848.4,1.08163]
[1746123953780,1.6672,1848.5,1848.4,1.08163]
[1746123954073,2.74877,1848.5,1848.4,1.08163]
[1746123954470,5.95657,1848.5,1848.4,1.08163]
[1746123955277,2.74877,1848.5,1848.4,1.90293]
[1746123956162,2.74877,1848.5,1848.4,1.08163]
[1746123956367,5.95657,1848.5,1848.4,1.08163]
[1746123957278,2.74877,1848.5,1848.4,1.08163]
[1746123960874,1.6672,1848.5,1848.4,1.08163]
[1746123961178,1.08154,1848.6,1848.5,1.08157]
[1746123961375,3.2078,1848.7,1848.6,1.08152]
[1746123961970,4.28926,1848.7,1848.6,1.08152]
[1746123962274,3.2078,1848.7,1848.6,1.08152]
[1746123962579,3.2078,1848.7,1848.6,2.75552]
[1746123962774,4.28926,1848.7,1848.6,2.75552]
[1746123962978,5.89876,1848.7,1848.6,2.75552]
[1746123963680,4.8173,1848.7,1848.6,2.75552]
[1746123964185,5.89876,1848.7,1848.6,2.75552]
[1746123964381,4.8173,1848.7,1848.6,2.75552]
[1746123965179,3.2078,1848.7,1848.6,2.75552]
[1746123966481,3.2078,1848.7,1848.6,1.08152]
[1746123967283,3.2078,1848.7,1848.6,2.65332]
[1746123967587,2.72733,1848.8,1848.7,1.08146]
[1746123967888,5.93513,1848.8,1848.7,2.65326]
[1746123968185,1.08152,1848.7,1848.6,1.08146]
[1746123968379,2.66762,1848.7,1848.6,1.08146]
[1746123968582,1.5861,1848.7,1848.6,1.08146]
[1746123968780,3.2078,1848.8,1848.7,1.08146]
[1746123969283,3.49699,1848.9,1848.8,1.0814]
[1746123969478,1.91089,1848.9,1848.8,1.0814]
[1746123969977,0.8295,1848.9,1848.8,1.0814]
[1746123970180,8.61671,1849.0,1848.9,1.08134]
[1746123970385,8.61671,1849.0,1848.9,1.87044]
[1746123970787,5.40891,1849.0,1848.9,1.87044]
[1746123971182,8.61671,1849.0,1848.9,1.87044]
[1746123972084,1.93205,1849.1,1849.0,1.08128]
[1746123972384,4.28899,1849.2,1849.1,1.08122]
[1746123976293,1.0814,1848.9,1848.8,1.08138]
[1746123976893,4.28912,1849.0,1848.9,1.08134]
[1746123977189,4.28912,1849.0,1848.9,2.80934]
[1746123977588,1.08132,1849.0,1848.9,2.80934]
[1746123978792,1.08127,1849.1,1849.0,1.08122]
[1746123978987,1.08127,1849.1,1849.0,2.80922]
[1746123979191,3.2078,1849.2,1849.1,1.08122]
[1746123979496,3.2078,1849.2,1849.1,3.54172]
[1746123979497,4.28897,1849.2,1849.1,3.54172]
[1746123979997,1.08117,1849.2,1849.1,3.54172]
[1746123980693,1.08116,1849.3,1849.2,1.08111]
[1746123980888,1.08116,1849.3,1849.2,3.50421]
[1746123981391,6.47192844,1849.4,1849.3,1.08111]
[1746123981599,6.47189844,1849.4,1849.3,2.67331]
[1746123983499,8.09469844,1849.4,1849.3,2.67331]
[1746123985396,2.70385,1849.4,1849.3,2.67331]
[1746123985898,1.6228,1849.4,1849.3,2.67331]
[1746123986099,3.2078,1849.5,1849.4,1.08105]
[1746123986302,4.28879,1849.5,1849.4,3.60185]
[1746123987395,1.08099,1849.5,1849.4,3.60185]
[1746123987703,3.47859,1849.6,1849.5,1.08099]
[1746123988002,3.47859,1849.6,1849.5,1.93969]
[1746123988303,3.47859,1849.6,1849.5,0.8587]
[1746123989898,3.47859,1849.6,1849.5,1.93969]
[1746123990199,1.08091,1849.7,1849.6,1.08093]
[1746123990497,1.08086,1849.8,1849.7,1.08081]
[1746123990804,2.66786,1849.8,1849.7,3.52671]
[1746123990999,1.587,1849.8,1849.7,3.52671]
[1746123991401,1.08087,1849.7,1849.6,1.08088]
[1746123992104,1.08093,1849.6,1849.5,2.74624]
[1746123992704,1.08099,1849.5,1849.4,2.68603]
[1746123993001,1.08099,1849.5,1849.2,5.91068]
[1746123993002,1.08105,1849.4,1849.3,2.67916]
[1746123993396,2.72215,1849.4,1849.3,2.67916]
[1746123995406,1.6411,1849.4,1849.3,2.67916]
[1746123995908,1.6497,1849.7,1849.5,1.08094]
[1746123996207,1.08095,1849.6,1849.5,1.08094]
[1746123996709,1.08099,1849.5,1849.4,2.6742]
[1746123996906,2.70277,1849.6,1849.5,1.08099]
[1746123997110,2.70277,1849.6,1849.5,2.67419]
[1746123998000,1.08099,1849.5,1849.4,1.08102]
[1746123998208,1.08105,1849.4,1849.3,4.32396]
[1746123999513,2.70073,1849.5,1849.4,1.08105]
[1746123999814,4.28876,1849.6,1849.5,1.08099]
[1746124000514,3.2078,1849.6,1849.5,1.08099]
[1746124001005,4.28873,1849.6,1849.5,1.08099]
[1746124001709,1.08093,1849.6,1849.5,1.08099]
[1746124006016,4.28866,1849.8,1849.7,1.08087]
[1746124006707,4.28866,1849.8,1849.7,2.77457]
[1746124007307,1.08086,1849.8,1849.7,2.77457]
[1746124007814,1.08087,1849.7,1849.6,2.69161]
[1746124013011,8.61234,1849.7,1849.4,4.59598]
[1746124013218,1.08099,1849.5,1849.4,4.59598]
[1746124014415,2.68689,1849.5,1849.4,6.25108]
[1746124014616,2.68689,1849.5,1849.4,5.1701]
[1746124015112,2.68689,1849.5,1849.4,1.6551]
[1746124015720,2.68689,1849.5,1849.3,1.6422]
[1746124015721,1.08105,1849.4,1849.3,1.6422]
[1746124016016,2.72445,1849.4,1849.3,1.6422]
[1746124016818,2.72445,1849.4,1849.3,3.3185]
[1746124018119,2.72445,1849.4,1849.3,1.6422]
[1746124019117,1.08105,1849.4,1849.3,1.6422]
[1746124019316,1.673,1849.7,1849.5,1.08098]
[1746124019512,2.75392,1849.7,1849.6,4.40893]
[1746124019821,2.75392,1849.7,1849.6,3.328]
[1746124020621,1.08103,1849.5,1849.3,1.08105]
[1746124020813,1.08103,1849.5,1849.4,1.6494]
[1746124021423,1.08115,1849.3,1849.1,3.515]
[1746124021622,1.08115,1849.3,1849.2,4.37736]
[1746124022623,1.08115,1849.3,1849.2,3.2962]
[1746124026231,1.08115,1849.3,1849.2,4.37737]
[1746124027322,5.91028,1849.5,1849.2,3.2962]
[1746124027520,5.39084844,1849.6,1849.3,1.6901]
[1746124027727,5.39084844,1849.6,1849.5,1.08099]
[1746124028528,5.39084844,1849.6,1849.5,1.90809]
[1746124028722,5.39084844,1849.6,1849.5,6.90809]
[1746124029025,5.39084844,1849.6,1849.5,3.54809]
[1746124029829,5.39084844,1849.6,1849.5,11.75589]
[1746124030326,5.39084844,1849.6,1849.5,6.75589]
[1746124031426,1.0808,1849.9,1849.8,1.08081]
[1746124032021,1.0808,1849.9,1849.8,1.91261]
[1746124032323,2.7409,1849.9,1849.8,1.91261]
[1746124035331,1.08072,1850.0,1849.9,1.08076]
[1746124035526,1.08072,1850.0,1849.9,2.67896]
[1746124035723,6.01159,1850.1,1850.0,1.0807]
[1746124035934,2.80379,1850.1,1850.0,3.4876]
[1746124036125,3.2078,1850.2,1850.1,1.08064]
[1746124036332,5.39084844,1850.3,1850.2,1.08058]
[1746124036727,5.39084844,1850.3,1850.2,2.67878]
[1746124038330,5.39084844,1850.5,1850.2,1.5982]
[1746124038534,5.39084844,1850.5,1850.4,1.08046]
[1746124038929,5.39084844,1850.5,1850.4,4.42556]
[1746124043337,3.2078,1850.6,1850.5,1.08041]
[1746124043531,3.2078,1850.6,1850.5,2.69051]
[1746124043735,2.65288,1850.8,1850.7,1.08029]
[1746124044235,3.2078,1851.2,1850.9,1.08017]
[1746124044431,4.28786,1851.2,1851.1,1.08006]
[1746124044735,5.99936,1851.2,1851.1,1.08006]
[1746124045235,1.08006,1851.1,1851.0,1.08008]
[1746124045429,3.6032,1851.1,1851.0,1.08011]
[1746124045629,1.08023,1850.8,1850.7,4.28803]
[1746124045841,1.08023,1850.8,1850.7,1.08023]
[1746124046637,2.79172,1850.9,1850.8,1.08023]
[1746124048634,1.08025,1850.8,1850.7,1.08024]
[1746124048839,2.70995,1850.8,1850.7,1.08024]
[1746124049643,2.70995,1850.8,1850.6,5.1211]
[1746124049937,2.80839,1850.7,1850.6,4.5913]
[1746124050336,1.7281,1850.7,1850.6,4.5913]
[1746124050536,1.7281,1850.7,1850.6,6.1983]
[1746124050938,2.80839,1850.7,1850.6,6.1983]
[1746124051733,2.80839,1850.7,1850.6,6.62027672]
[1746124054342,2.80839,1850.7,1850.6,5.01327672]
[1746124058146,1.7281,1850.7,1850.6,5.01327672]
[1746124058343,2.80839,1850.7,1850.6,6.72807672]
[1746124058743,1.7281,1850.7,1850.6,6.72807672]
[1746124058944,2.80839,1850.7,1850.6,6.72807672]
[1746124060352,1.7281,1850.7,1850.6,6.72807672]
[1746124060747,1.08025,1850.8,1850.7,1.08029]
[1746124060942,1.08025,1850.8,1850.7,3.60539]
[1746124061847,1.08025,1850.8,1850.7,4.02736672]
[1746124063648,1.08025,1850.8,1850.7,0.42197672]
[1746124063851,1.93745,1850.8,1850.7,0.42197672]
[1746124067558,5.14525,1850.8,1850.7,0.42197672]
[1746124072755,6.87375,1850.8,1850.7,0.42197672]
[1746124074961,6.01655,1850.8,1850.7,0.42197672]
[1746124075159,6.01655,1850.8,1850.7,1.50226672]
[1746124075862,1.08025,1850.8,1850.7,2.35366672]
[1746124077961,1.08025,1850.8,1850.7,4.06716672]
[1746124078157,1.6295,1850.9,1850.8,1.08023]
[1746124078462,4.28796,1851.0,1850.9,1.08017]
[1746124078853,1.08016,1851.0,1850.9,3.21564672]
[1746124079254,1.6295,1851.1,1851.0,1.08011]
[1746124079454,6.47088844,1851.2,1851.1,1.08006]
[1746124079655,1.07997,1851.3,1851.2,1.08]
[1746124079855,2.76987,1851.3,1851.2,1.50197672]
[1746124080056,2.76987,1851.3,1851.2,0.42197672]
[1746124080763,2.76987,1851.3,1851.2,1.50197672]
[1746124080964,2.76987,1851.3,1851.2,2.81567672]
[1746124081362,2.76987,1851.3,1851.2,0.42197672]
[1746124087573,2.76987,1851.3,1851.2,1.50197672]
[1746124087773,2.76987,1851.3,1851.2,0.42197672]
[1746124092273,2.76987,1851.3,1851.2,2.11837672]
[1746124093275,2.76987,1851.3,1851.2,3.19837672]
[1746124093571,1.07997,1851.3,1851.2,3.19837672]
[1746124094363,1.07997,1851.3,1851.2,2.11837672]
[1746124094863,2.65087,1851.3,1851.2,2.11837672]
[1746124097278,2.65087,1851.3,1851.2,0.42197672]
[1746124097679,2.65087,1851.3,1851.2,1.50197672]
[1746124098280,1.07997,1851.3,1851.2,1.50197672]
[1746124104082,1.07987,1851.5,1851.2,3.62977672]
[1746124104286,1.07987,1851.5,1851.4,1.07988]
[1746124104684,1.07987,1851.5,1851.4,2.80908]
[1746124104985,1.07987,1851.5,1851.4,3.23105672]
[1746124105186,6.01259,1851.6,1851.5,1.07982]
[1746124105377,6.01259,1851.6,1851.5,2.80902]
[1746124106087,6.01259,1851.6,1851.5,3.23099672]
[1746124106386,1.10753,1851.7,1851.6,1.07976]
[1746124106578,1.10753,1851.7,1851.6,3.67236]
[1746124106984,1.10753,1851.7,1851.6,4.09433672]
[1746124109987,1.10753,1851.7,1851.6,7.30213672]
[1746124111183,1.10753,1851.7,1851.6,4.09433672]
[1746124111586,4.885,1852.0,1851.9,1.07959]
[1746124111790,5.96453,1852.0,1851.9,1.07959]
[1746124112193,5.96453,1852.0,1851.9,3.98336672]
[1746124114898,2.75673,1852.0,1851.9,3.98336672]
[1746124118693,1.6772,1852.0,1851.9,3.98336672]
[1746124118896,1.07952,1852.1,1852.0,1.07953]
[1746124119097,1.07952,1852.1,1852.0,3.12640672]
[1746124119290,2.71352,1852.1,1852.0,3.12640672]
[1746124121100,2.71352,1852.1,1852.0,1.50150672]
[1746124123101,2.71352,1852.1,1852.0,0.42197672]
[1746124123391,2.71352,1852.1,1852.0,1.50150672]
[1746124123794,2.71352,1852.1,1852.0,0.42197672]
[1746124126501,7.71352,1852.1,1852.0,0.42197672]
[1746124128597,1.07976,1851.6,1851.5,3.505]
[1746124128797,1.07976,1851.6,1851.5,4.5848]
[1746124129795,2.64326,1851.6,1851.5,4.5848]
[1746124130705,2.64326,1851.6,1851.5,3.505]
[1746124130905,2.64326,1851.6,1851.5,4.58482]
[1746124132304,2.64326,1851.6,1851.5,3.505]
[1746124133000,3.47686,1851.6,1851.5,3.505]
[1746124133201,1.07982,1851.5,1851.4,0.8161]
[1746124133399,2.65932,1851.5,1851.4,0.8161]
[1746124137910,2.65932,1851.5,1851.4,1.89598]
[1746124138812,2.65932,1851.5,1851.4,0.8161]
[1746124140011,2.65932,1851.5,1851.4,1.89598]
[1746124140210,2.65932,1851.5,1851.4,0.8161]
[1746124145002,2.65932,1851.5,1851.4,1.89598]
[1746124145512,2.65932,1851.5,1851.4,3.61448]
[1746124146808,2.65932,1851.5,1851.4,2.5346]
[1746124147014,1.07988,1851.4,1851.3,0.8016]
[1746124147216,2.74598,1851.4,1851.3,0.8016]
[1746124148016,2.74598,1851.4,1851.3,1.88154]
[1746124148812,2.74598,1851.4,1851.3,0.8016]
[1746124149114,1.07994,1851.3,1851.2,7.10685]
[1746124149315,2.74604,1851.3,1851.2,7.95215]
[1746124149512,2.74604,1851.3,1851.2,4.3276]
[1746124149710,2.74604,1851.3,1851.2,5.4076]